[Event "Titled Tuesday Blitz January 18 2022"]
[White "Rustemov, Alexander"]
[Black "Deac, Bogdan-Daniel"]
[WhiteFideId "4119002"]
[BlackFideId "1226380"]
[WhiteElo "2895"]
[BlackElo "2646"]
[Result "0-1"]
[Round "05"]
[TimeControl "180+1"]
[Date "2022.01.18"]
[WhiteClock "0:00:03"]
[BlackClock "0:00:04"]

1. d4 {[%clk 0:03:00]}  Nf6 {[%clk 0:02:59]} 2. Nf3 {[%clk 0:03:01]}  d5 {[%clk 0:02:59]} 3. c4 {[%clk 0:03:00]}  e6 {[%clk 0:02:59]} 4. cxd5 {[%clk 0:03:00]}  exd5 {[%clk 0:02:59]} 5. Nc3 {[%clk 0:03:00]}  h6 {[%clk 0:02:49]} 6. Bf4 {[%clk 0:02:59]}  Bd6 {[%clk 0:02:49]} 7. Bxd6 {[%clk 0:02:59]}  Qxd6 {[%clk 0:02:49]} 8. e3 {[%clk 0:02:52]}  Nc6 {[%clk 0:02:39]} 9. h3 {[%clk 0:02:45]}  Ne7 {[%clk 0:02:35]} 10. Bd3 {[%clk 0:02:31]}  Bf5 {[%clk 0:02:29]} 11. O-O {[%clk 0:02:30]}  c6 {[%clk 0:02:26]} 12. Rc1 {[%clk 0:02:26]}  O-O {[%clk 0:02:22]} 13. Ne5 {[%clk 0:02:22]}  g6 {[%clk 0:02:18]} 14. Na4 {[%clk 0:02:19]}  Bxd3 {[%clk 0:02:14]} 15. Qxd3 {[%clk 0:02:19]}  Nf5 {[%clk 0:02:14]} 16. Nc5 {[%clk 0:02:18]}  Qe7 {[%clk 0:02:14]} 17. b4 {[%clk 0:02:08]}  Nd6 {[%clk 0:02:10]} 18. a4 {[%clk 0:02:08]}  a6 {[%clk 0:01:47]} 19. Rc2 {[%clk 0:02:05]}  Kg7 {[%clk 0:01:40]} 20. Rfc1 {[%clk 0:02:04]}  h5 {[%clk 0:01:38]} 21. f3 {[%clk 0:01:52]}  Rfe8 {[%clk 0:00:17]} 22. e4 {[%clk 0:01:51]}  Rad8 {[%clk 0:00:17]} 23. Re1 {[%clk 0:01:41]}  a5 {[%clk 0:00:14]} 24. bxa5 {[%clk 0:01:40]}  Ra8 {[%clk 0:00:14]} 25. Qc3 {[%clk 0:01:39]}  Qc7 {[%clk 0:00:12]} 26. Rb2 {[%clk 0:01:28]}  Rxa5 {[%clk 0:00:08]} 27. Nxb7 {[%clk 0:01:22]}  Rxa4 {[%clk 0:00:07]} 28. Nxd6 {[%clk 0:01:07]}  Qxd6 {[%clk 0:00:07]} 29. Rb7 {[%clk 0:00:51]}  Re7 {[%clk 0:00:07]} 30. Rxe7 {[%clk 0:00:51]}  Qxe7 {[%clk 0:00:08]} 31. Nxc6 {[%clk 0:00:51]}  Qe6 {[%clk 0:00:09]} 32. Ne5 {[%clk 0:00:47]}  Qb6 {[%clk 0:00:07]} 33. Qc5 {[%clk 0:00:35]}  Qb2 {[%clk 0:00:07]} 34. Qe7 {[%clk 0:00:32]}  Qxd4+ {[%clk 0:00:07]} 35. Kh1 {[%clk 0:00:31]}  Ra7 {[%clk 0:00:07]} 36. Qd6 {[%clk 0:00:25]}  Qf2 {[%clk 0:00:07]} 37. Rg1 {[%clk 0:00:23]}  dxe4 {[%clk 0:00:07]} 38. fxe4 {[%clk 0:00:16]}  Nxe4 {[%clk 0:00:06]} 39. Qd3 {[%clk 0:00:08]}  Ng3+ {[%clk 0:00:05]} 40. Kh2 {[%clk 0:00:08]}  Ne2 {[%clk 0:00:05]} 41. Rd1 {[%clk 0:00:03]}  Qf4+ {[%clk 0:00:05]} 42. Kh1 {[%clk 0:00:03]}  Qxe5 {[%clk 0:00:05]} 43. Re1 {[%clk 0:00:03]}  Ng3+ {[%clk 0:00:04]} 0-1


[Site "https://www.chess.com"]

[Event "Titled Tuesday Blitz January 18 2022"]
[White "Samunenkov, Ihor"]
[Black "Swicarz, Maciej"]
[WhiteFideId "14187086"]
[BlackFideId "1113585"]
[WhiteElo "2406"]
[BlackElo "2063"]
[Result "1-0"]
[Round "05"]
[TimeControl "180+1"]
[Date "2022.01.18"]
[WhiteClock "0:00:25"]
[BlackClock "0:00:37"]

1. e4 {[%clk 0:02:59]}  c6 {[%clk 0:02:59]} 2. Nf3 {[%clk 0:02:58]}  d5 {[%clk 0:03:00]} 3. Nc3 {[%clk 0:02:58]}  a6 {[%clk 0:03:00]} 4. d4 {[%clk 0:02:54]}  Bg4 {[%clk 0:02:59]} 5. Be2 {[%clk 0:02:33]}  e6 {[%clk 0:02:58]} 6. O-O {[%clk 0:02:31]}  Nf6 {[%clk 0:02:58]} 7. e5 {[%clk 0:02:29]}  Nfd7 {[%clk 0:02:58]} 8. Ng5 {[%clk 0:02:17]}  Bxe2 {[%clk 0:02:52]} 9. Nxe2 {[%clk 0:02:18]}  Be7 {[%clk 0:02:49]} 10. f4 {[%clk 0:02:17]}  c5 {[%clk 0:02:43]} 11. c3 {[%clk 0:02:17]}  Nc6 {[%clk 0:02:43]} 12. Be3 {[%clk 0:02:17]}  cxd4 {[%clk 0:02:42]} 13. cxd4 {[%clk 0:02:17]}  Qb6 {[%clk 0:02:28]} 14. b3 {[%clk 0:02:12]}  Bxg5 {[%clk 0:02:21]} 15. fxg5 {[%clk 0:02:12]}  Ndxe5 {[%clk 0:02:15]} 16. Ng3 {[%clk 0:02:00]}  Ng6 {[%clk 0:02:08]} 17. Qg4 {[%clk 0:01:50]}  e5 {[%clk 0:01:47]} 18. Rae1 {[%clk 0:01:33]}  Qb4 {[%clk 0:01:38]} 19. h4 {[%clk 0:01:18]}  O-O {[%clk 0:01:25]} 20. h5 {[%clk 0:01:18]}  Nge7 {[%clk 0:01:25]} 21. h6 {[%clk 0:01:18]}  g6 {[%clk 0:01:07]} 22. Kh1 {[%clk 0:00:39]}  Rad8 {[%clk 0:00:47]} 23. Qf3 {[%clk 0:00:28]}  f5 {[%clk 0:00:46]} 24. gxf6 {[%clk 0:00:27]}  exd4 {[%clk 0:00:37]} 25. f7+ {[%clk 0:00:25]} 1-0


[Site "https://www.chess.com"]

[Event "Titled Tuesday Blitz January 18 2022"]
[White "Sanal, Vahap"]
[Black "Kalashian, David"]
[WhiteFideId "6300545"]
[BlackFideId "13302418"]
[WhiteElo "2603"]
[BlackElo "2490"]
[Result "1-0"]
[Round "05"]
[TimeControl "180+1"]
[Date "2022.01.18"]
[WhiteClock "0:01:32"]
[BlackClock "0:00:16"]

1. e4 {[%clk 0:03:00]}  c6 {[%clk 0:02:59]} 2. Nf3 {[%clk 0:03:00]}  g6 {[%clk 0:03:00]} 3. d4 {[%clk 0:02:59]}  Bg7 {[%clk 0:02:59]} 4. h3 {[%clk 0:02:59]}  d6 {[%clk 0:02:59]} 5. Nc3 {[%clk 0:02:58]}  Nf6 {[%clk 0:03:00]} 6. Be2 {[%clk 0:02:59]}  O-O {[%clk 0:03:00]} 7. O-O {[%clk 0:02:59]}  Nbd7 {[%clk 0:03:00]} 8. a4 {[%clk 0:03:00]}  e5 {[%clk 0:03:00]} 9. Re1 {[%clk 0:03:00]}  Re8 {[%clk 0:02:59]} 10. Bc4 {[%clk 0:02:59]}  Qe7 {[%clk 0:02:43]} 11. Ba2 {[%clk 0:02:59]}  h6 {[%clk 0:02:37]} 12. Be3 {[%clk 0:02:58]}  Nf8 {[%clk 0:02:32]} 13. Qd2 {[%clk 0:02:57]}  Kh7 {[%clk 0:02:31]} 14. Rad1 {[%clk 0:02:57]}  Be6 {[%clk 0:01:57]} 15. d5 {[%clk 0:02:43]}  cxd5 {[%clk 0:01:56]} 16. Bxd5 {[%clk 0:02:43]}  Nxd5 {[%clk 0:01:33]} 17. Nxd5 {[%clk 0:02:43]}  Qd7 {[%clk 0:01:29]} 18. b3 {[%clk 0:02:30]}  Red8 {[%clk 0:01:28]} 19. c4 {[%clk 0:02:29]}  b6 {[%clk 0:01:22]} 20. Qc1 {[%clk 0:02:27]}  Rac8 {[%clk 0:01:18]} 21. Bxh6 {[%clk 0:02:13]}  Bxd5 {[%clk 0:01:03]} 22. Bxg7 {[%clk 0:02:12]}  Kxg7 {[%clk 0:01:02]} 23. Rxd5 {[%clk 0:02:12]}  Qc7 {[%clk 0:01:00]} 24. Red1 {[%clk 0:02:09]}  Ne6 {[%clk 0:00:59]} 25. g3 {[%clk 0:02:09]}  Nc5 {[%clk 0:00:58]} 26. Qe3 {[%clk 0:02:08]}  Ne6 {[%clk 0:00:56]} 27. h4 {[%clk 0:02:08]}  Qe7 {[%clk 0:00:52]} 28. Kg2 {[%clk 0:01:59]}  Qf6 {[%clk 0:00:49]} 29. Ng5 {[%clk 0:01:51]}  Nxg5 {[%clk 0:00:32]} 30. Qxg5 {[%clk 0:01:44]}  Qxg5 {[%clk 0:00:31]} 31. hxg5 {[%clk 0:01:45]}  Rc6 {[%clk 0:00:32]} 32. Rxe5 {[%clk 0:01:44]}  Kf8 {[%clk 0:00:27]} 33. Red5 {[%clk 0:01:44]}  Ke7 {[%clk 0:00:26]} 34. e5 {[%clk 0:01:45]}  a5 {[%clk 0:00:25]} 35. f4 {[%clk 0:01:40]}  Ke6 {[%clk 0:00:21]} 36. Kf3 {[%clk 0:01:40]}  Rd7 {[%clk 0:00:22]} 37. g4 {[%clk 0:01:36]}  Rd8 {[%clk 0:00:20]} 38. Ke4 {[%clk 0:01:35]}  Ke7 {[%clk 0:00:19]} 39. Rxd6 {[%clk 0:01:32]}  Rcxd6 {[%clk 0:00:18]} 40. Rxd6 {[%clk 0:01:33]}  Rxd6 {[%clk 0:00:18]} 41. exd6+ {[%clk 0:01:33]}  Kxd6 {[%clk 0:00:19]} 42. f5 {[%clk 0:01:33]}  Kc5 {[%clk 0:00:17]} 43. Ke5 {[%clk 0:01:31]}  Kb4 {[%clk 0:00:17]} 44. Kf6 {[%clk 0:01:31]}  Kxb3 {[%clk 0:00:16]} 45. Kxf7 {[%clk 0:01:32]} 1-0


[Site "https://www.chess.com"]

[Event "Titled Tuesday Blitz January 18 2022"]
[White "Sargsyan, Anna M."]
[Black "Svane, Frederik"]
[WhiteFideId "13308130"]
[BlackFideId "12923044"]
[WhiteElo "2271"]
[BlackElo "2459"]
[Result "1-0"]
[Round "05"]
[TimeControl "180+1"]
[Date "2022.01.18"]
[WhiteClock "0:00:10"]
[BlackClock "0:00:01"]

1. d4 {[%clk 0:03:00]}  Nf6 {[%clk 0:03:00]} 2. c4 {[%clk 0:03:01]}  e6 {[%clk 0:03:00]} 3. Nf3 {[%clk 0:03:00]}  d5 {[%clk 0:03:00]} 4. Nc3 {[%clk 0:03:00]}  dxc4 {[%clk 0:03:01]} 5. e4 {[%clk 0:02:55]}  b5 {[%clk 0:03:01]} 6. e5 {[%clk 0:02:55]}  Nd5 {[%clk 0:03:02]} 7. Nxb5 {[%clk 0:02:55]}  Nb6 {[%clk 0:03:02]} 8. Nc3 {[%clk 0:02:52]}  Nc6 {[%clk 0:02:55]} 9. Be3 {[%clk 0:02:49]}  Be7 {[%clk 0:02:51]} 10. Be2 {[%clk 0:02:50]}  O-O {[%clk 0:02:49]} 11. O-O {[%clk 0:02:50]}  Nb4 {[%clk 0:02:48]} 12. Rc1 {[%clk 0:02:46]}  Ba6 {[%clk 0:02:38]} 13. a3 {[%clk 0:02:41]}  Nd3 {[%clk 0:02:33]} 14. Rb1 {[%clk 0:02:41]}  c5 {[%clk 0:02:13]} 15. Bxd3 {[%clk 0:02:27]}  cxd3 {[%clk 0:02:11]} 16. dxc5 {[%clk 0:02:27]}  Nd5 {[%clk 0:01:25]} 17. Nxd5 {[%clk 0:02:27]}  Qxd5 {[%clk 0:01:26]} 18. b4 {[%clk 0:02:28]}  Rfd8 {[%clk 0:01:15]} 19. Qd2 {[%clk 0:02:27]}  Bb7 {[%clk 0:01:04]} 20. Rfd1 {[%clk 0:02:23]}  Qe4 {[%clk 0:00:47]} 21. Rb3 {[%clk 0:02:05]}  Qg6 {[%clk 0:00:03]} 22. Ne1 {[%clk 0:01:56]}  Be4 {[%clk 0:00:03]} 23. f3 {[%clk 0:01:45]}  Bf5 {[%clk 0:00:03]} 24. c6 {[%clk 0:01:33]}  Rac8 {[%clk 0:00:03]} 25. Rc3 {[%clk 0:01:31]}  h5 {[%clk 0:00:02]} 26. Bxa7 {[%clk 0:01:23]}  Rd5 {[%clk 0:00:02]} 27. f4 {[%clk 0:01:14]}  Be4 {[%clk 0:00:02]} 28. Be3 {[%clk 0:01:08]}  Qf5 {[%clk 0:00:02]} 29. Rb1 {[%clk 0:01:04]}  h4 {[%clk 0:00:02]} 30. b5 {[%clk 0:00:54]}  h3 {[%clk 0:00:03]} 31. b6 {[%clk 0:00:48]}  hxg2 {[%clk 0:00:03]} 32. b7 {[%clk 0:00:49]}  Rf8 {[%clk 0:00:02]} 33. b8=Q {[%clk 0:00:41]}  Qh3 {[%clk 0:00:03]} 34. c7 {[%clk 0:00:28]}  Kh7 {[%clk 0:00:03]} 35. c8=Q {[%clk 0:00:24]}  Rxc8 {[%clk 0:00:03]} 36. Rxc8 {[%clk 0:00:25]}  Kg6 {[%clk 0:00:04]} 37. Rh8 {[%clk 0:00:24]}  Qf3 {[%clk 0:00:03]} 38. Qf2 {[%clk 0:00:15]}  Qxf2+ {[%clk 0:00:02]} 39. Bxf2 {[%clk 0:00:13]}  d2 {[%clk 0:00:03]} 40. Qg8 {[%clk 0:00:12]}  dxe1=Q+ {[%clk 0:00:01]} 41. Rxe1 {[%clk 0:00:11]}  Kf5 {[%clk 0:00:01]} 42. Qxf7+ {[%clk 0:00:11]}  Kg4 {[%clk 0:00:01]} 43. Qxe6+ {[%clk 0:00:10]} 1-0


[Site "https://www.chess.com"]

[Event "Titled Tuesday Blitz January 18 2022"]
[White "Savchenko, Boris"]
[Black "Yuan, Qingyu"]
[WhiteFideId "4147332"]
[BlackFideId "8609772"]
[WhiteElo "2512"]
[BlackElo "2359"]
[Result "1-0"]
[Round "05"]
[TimeControl "180+1"]
[Date "2022.01.18"]
[WhiteClock "0:00:09"]
[BlackClock "0:00:03"]

1. e4 {[%clk 0:03:00]}  c6 {[%clk 0:02:59]} 2. Nc3 {[%clk 0:02:58]}  d5 {[%clk 0:02:59]} 3. d4 {[%clk 0:02:57]}  dxe4 {[%clk 0:02:59]} 4. Nxe4 {[%clk 0:02:58]}  Nf6 {[%clk 0:03:00]} 5. Nxf6+ {[%clk 0:02:58]}  exf6 {[%clk 0:03:00]} 6. c3 {[%clk 0:02:58]}  Bd6 {[%clk 0:03:01]} 7. Bd3 {[%clk 0:02:59]}  O-O {[%clk 0:03:01]} 8. Ne2 {[%clk 0:03:00]}  Re8 {[%clk 0:03:02]} 9. Qc2 {[%clk 0:03:01]}  h5 {[%clk 0:03:02]} 10. Be3 {[%clk 0:03:01]}  Nd7 {[%clk 0:03:01]} 11. O-O-O {[%clk 0:03:01]}  Nf8 {[%clk 0:02:54]} 12. c4 {[%clk 0:03:01]}  Be6 {[%clk 0:02:51]} 13. Kb1 {[%clk 0:03:00]}  Rc8 {[%clk 0:02:50]} 14. Nc3 {[%clk 0:02:57]}  Bb4 {[%clk 0:02:50]} 15. Ne4 {[%clk 0:02:54]}  Be7 {[%clk 0:02:50]} 16. f3 {[%clk 0:02:37]}  b5 {[%clk 0:02:46]} 17. cxb5 {[%clk 0:02:27]}  Qa5 {[%clk 0:01:53]} 18. b3 {[%clk 0:02:04]}  cxb5 {[%clk 0:01:52]} 19. Nc5 {[%clk 0:02:04]}  Nd7 {[%clk 0:01:37]} 20. Bh7+ {[%clk 0:01:55]}  Kh8 {[%clk 0:01:37]} 21. Bf5 {[%clk 0:01:54]}  Bxc5 {[%clk 0:00:45]} 22. dxc5 {[%clk 0:01:55]}  Nxc5 {[%clk 0:00:17]} 23. Bxc5 {[%clk 0:01:53]}  Bxf5 {[%clk 0:00:12]} 24. Qxf5 {[%clk 0:01:53]}  Re2 {[%clk 0:00:09]} 25. Qxc8+ {[%clk 0:01:04]}  Kh7 {[%clk 0:00:10]} 26. Qf5+ {[%clk 0:00:50]}  g6 {[%clk 0:00:10]} 27. Qc2 {[%clk 0:00:51]}  Rxc2 {[%clk 0:00:10]} 28. Kxc2 {[%clk 0:00:52]}  Qxa2+ {[%clk 0:00:11]} 29. Kc3 {[%clk 0:00:52]}  a5 {[%clk 0:00:11]} 30. Bd4 {[%clk 0:00:47]}  b4+ {[%clk 0:00:10]} 31. Kc4 {[%clk 0:00:47]}  a4 {[%clk 0:00:09]} 32. Bxf6 {[%clk 0:00:41]}  Qxb3+ {[%clk 0:00:09]} 33. Kc5 {[%clk 0:00:40]}  Qe6 {[%clk 0:00:06]} 34. Rd6 {[%clk 0:00:38]}  Qe3+ {[%clk 0:00:05]} 35. Kxb4 {[%clk 0:00:37]}  Qb3+ {[%clk 0:00:05]} 36. Ka5 {[%clk 0:00:36]}  Qc4 {[%clk 0:00:02]} 37. Rhd1 {[%clk 0:00:30]}  a3 {[%clk 0:00:02]} 38. Ba1 {[%clk 0:00:26]}  Qc5+ {[%clk 0:00:02]} 39. Ka4 {[%clk 0:00:26]}  a2 {[%clk 0:00:03]} 40. Kb3 {[%clk 0:00:20]}  Qa5 {[%clk 0:00:03]} 41. R1d2 {[%clk 0:00:17]}  g5 {[%clk 0:00:02]} 42. R6d5 {[%clk 0:00:15]}  Qb6+ {[%clk 0:00:02]} 43. Kxa2 {[%clk 0:00:15]}  f6 {[%clk 0:00:03]} 44. Rd6 {[%clk 0:00:13]}  Qa5+ {[%clk 0:00:04]} 45. Kb1 {[%clk 0:00:13]}  Qb5+ {[%clk 0:00:04]} 46. Bb2 {[%clk 0:00:14]}  Qf1+ {[%clk 0:00:04]} 47. Kc2 {[%clk 0:00:14]}  Qc4+ {[%clk 0:00:04]} 48. Bc3 {[%clk 0:00:14]}  Qa2+ {[%clk 0:00:04]} 49. Kd3 {[%clk 0:00:14]}  Qa3 {[%clk 0:00:04]} 50. Rxf6 {[%clk 0:00:14]}  Qa4 {[%clk 0:00:04]} 51. Re2 {[%clk 0:00:13]}  Qb5+ {[%clk 0:00:04]} 52. Kd2 {[%clk 0:00:14]}  Qd5+ {[%clk 0:00:04]} 53. Ke1 {[%clk 0:00:14]}  Qc5 {[%clk 0:00:04]} 54. Bb2 {[%clk 0:00:10]}  Qg1+ {[%clk 0:00:04]} 55. Kd2 {[%clk 0:00:10]}  Qc5 {[%clk 0:00:04]} 56. Rfe6 {[%clk 0:00:08]}  Qb4+ {[%clk 0:00:04]} 57. Bc3 {[%clk 0:00:08]}  Qc5 {[%clk 0:00:04]} 58. Re7+ {[%clk 0:00:08]}  Kg6 {[%clk 0:00:03]} 59. R2e6+ {[%clk 0:00:08]}  Kf5 {[%clk 0:00:02]} 60. Re5+ {[%clk 0:00:09]}  Qxe5 {[%clk 0:00:02]} 61. Rxe5+ {[%clk 0:00:10]}  Kf4 {[%clk 0:00:02]} 62. Ke2 {[%clk 0:00:09]}  g4 {[%clk 0:00:03]} 63. g3# {[%clk 0:00:09]} 1-0


[Site "https://www.chess.com"]

[Event "Titled Tuesday Blitz January 18 2022"]
[White "Shkapenko, Pavel"]
[Black "Salimova, Nurgyul"]
[WhiteFideId "4151933"]
[BlackFideId "2915138"]
[WhiteElo "2386"]
[BlackElo "2185"]
[Result "1/2-1/2"]
[Round "05"]
[TimeControl "180+1"]
[Date "2022.01.18"]
[WhiteClock "0:00:20"]
[BlackClock "0:00:04"]

1. e4 {[%clk 0:03:00]}  c6 {[%clk 0:02:57]} 2. d4 {[%clk 0:03:00]}  d5 {[%clk 0:02:54]} 3. e5 {[%clk 0:03:01]}  Bf5 {[%clk 0:02:54]} 4. h4 {[%clk 0:03:00]}  h5 {[%clk 0:02:53]} 5. Bd3 {[%clk 0:03:00]}  Bxd3 {[%clk 0:02:53]} 6. Qxd3 {[%clk 0:03:01]}  Qa5+ {[%clk 0:02:53]} 7. Nd2 {[%clk 0:03:00]}  e6 {[%clk 0:02:50]} 8. Ne2 {[%clk 0:02:54]}  Ne7 {[%clk 0:02:45]} 9. b4 {[%clk 0:02:40]}  Qa6 {[%clk 0:02:42]} 10. Qb3 {[%clk 0:02:35]}  Nf5 {[%clk 0:02:40]} 11. Nf3 {[%clk 0:02:32]}  Qb5 {[%clk 0:02:32]} 12. Bd2 {[%clk 0:02:29]}  Nd7 {[%clk 0:02:27]} 13. a4 {[%clk 0:02:28]}  Qc4 {[%clk 0:02:27]} 14. Qxc4 {[%clk 0:02:13]}  dxc4 {[%clk 0:02:28]} 15. a5 {[%clk 0:02:13]}  Be7 {[%clk 0:02:15]} 16. c3 {[%clk 0:02:13]}  O-O-O {[%clk 0:01:51]} 17. Bg5 {[%clk 0:02:04]}  f6 {[%clk 0:01:49]} 18. Bf4 {[%clk 0:01:54]}  fxe5 {[%clk 0:01:29]} 19. Nxe5 {[%clk 0:01:49]}  Nxe5 {[%clk 0:01:28]} 20. Bxe5 {[%clk 0:01:49]}  Nxh4 {[%clk 0:01:23]} 21. Nf4 {[%clk 0:01:35]}  Nf5 {[%clk 0:00:44]} 22. O-O-O {[%clk 0:01:13]}  Bg5 {[%clk 0:00:42]} 23. Rde1 {[%clk 0:01:08]}  Bxf4+ {[%clk 0:00:41]} 24. Bxf4 {[%clk 0:01:07]}  Kd7 {[%clk 0:00:41]} 25. Re5 {[%clk 0:01:05]}  Rde8 {[%clk 0:00:36]} 26. Rc5 {[%clk 0:00:59]}  b5 {[%clk 0:00:29]} 27. axb6 {[%clk 0:00:42]}  axb6 {[%clk 0:00:30]} 28. Rxc4 {[%clk 0:00:43]}  h4 {[%clk 0:00:30]} 29. b5 {[%clk 0:00:42]}  Rc8 {[%clk 0:00:28]} 30. bxc6+ {[%clk 0:00:41]}  Rxc6 {[%clk 0:00:28]} 31. Rxc6 {[%clk 0:00:41]}  Kxc6 {[%clk 0:00:29]} 32. Kd2 {[%clk 0:00:41]}  Rh5 {[%clk 0:00:25]} 33. Kd3 {[%clk 0:00:41]}  g5 {[%clk 0:00:24]} 34. Be5 {[%clk 0:00:40]}  g4 {[%clk 0:00:24]} 35. Ke4 {[%clk 0:00:40]}  h3 {[%clk 0:00:21]} 36. gxh3 {[%clk 0:00:40]}  gxh3 {[%clk 0:00:22]} 37. Kf3 {[%clk 0:00:38]}  Kd5 {[%clk 0:00:22]} 38. Kg4 {[%clk 0:00:38]}  Rh4+ {[%clk 0:00:21]} 39. Kg5 {[%clk 0:00:34]}  Kc4 {[%clk 0:00:17]} 40. Kf6 {[%clk 0:00:34]}  Rh6+ {[%clk 0:00:17]} 41. Kg5 {[%clk 0:00:29]}  b5 {[%clk 0:00:16]} 42. Rh2 {[%clk 0:00:26]}  Kd3 {[%clk 0:00:07]} 43. Kg4 {[%clk 0:00:20]}  Kc4 {[%clk 0:00:05]} 44. Kg5 {[%clk 0:00:20]}  Rh7 {[%clk 0:00:04]} 45. Kg4 {[%clk 0:00:20]}  Rh6 {[%clk 0:00:04]} 46. Kg5 {[%clk 0:00:20]} 1/2-1/2


[Site "https://www.chess.com"]

[Event "Titled Tuesday Blitz January 18 2022"]
[White "Tregubov, Pavel V."]
[Black "Martin Carmona, Gaston Manuel"]
[WhiteFideId "4115341"]
[BlackFideId "22284567"]
[WhiteElo "2341"]
[BlackElo "2161"]
[Result "1-0"]
[Round "05"]
[TimeControl "180+1"]
[Date "2022.01.18"]
[WhiteClock "0:00:29"]
[BlackClock "0:00:07"]

1. e4 {[%clk 0:02:54]}  e6 {[%clk 0:02:59]} 2. d4 {[%clk 0:02:52]}  d5 {[%clk 0:03:00]} 3. exd5 {[%clk 0:02:53]}  exd5 {[%clk 0:02:59]} 4. Nf3 {[%clk 0:02:54]}  Nf6 {[%clk 0:02:51]} 5. Bd3 {[%clk 0:02:53]}  c5 {[%clk 0:02:50]} 6. O-O {[%clk 0:02:49]}  c4 {[%clk 0:02:47]} 7. Re1+ {[%clk 0:02:50]}  Be7 {[%clk 0:02:48]} 8. Bf1 {[%clk 0:02:49]}  O-O {[%clk 0:02:48]} 9. b3 {[%clk 0:02:47]}  cxb3 {[%clk 0:02:49]} 10. axb3 {[%clk 0:02:47]}  Nc6 {[%clk 0:02:46]} 11. Bf4 {[%clk 0:02:33]}  Bg4 {[%clk 0:02:40]} 12. c3 {[%clk 0:02:33]}  Ne4 {[%clk 0:02:28]} 13. Bd3 {[%clk 0:02:25]}  Bd6 {[%clk 0:02:03]} 14. Bxd6 {[%clk 0:02:17]}  Nxd6 {[%clk 0:01:48]} 15. Nbd2 {[%clk 0:02:17]}  Qf6 {[%clk 0:01:45]} 16. Qc2 {[%clk 0:02:14]}  h6 {[%clk 0:01:42]} 17. Ne5 {[%clk 0:02:13]}  Bf5 {[%clk 0:01:34]} 18. Bxf5 {[%clk 0:02:09]}  Nxf5 {[%clk 0:01:30]} 19. Nd7 {[%clk 0:02:06]}  Qg6 {[%clk 0:01:21]} 20. Nxf8 {[%clk 0:02:06]}  Rxf8 {[%clk 0:01:21]} 21. Nf3 {[%clk 0:02:05]}  Qf6 {[%clk 0:01:18]} 22. Ne5 {[%clk 0:02:01]}  Nxe5 {[%clk 0:01:16]} 23. Rxe5 {[%clk 0:02:00]}  g6 {[%clk 0:01:12]} 24. Rxd5 {[%clk 0:01:56]}  Re8 {[%clk 0:00:54]} 25. Qd2 {[%clk 0:01:53]}  a6 {[%clk 0:00:40]} 26. Re1 {[%clk 0:01:49]}  Rc8 {[%clk 0:00:39]} 27. Rde5 {[%clk 0:01:47]}  Kg7 {[%clk 0:00:38]} 28. h3 {[%clk 0:01:39]}  Rd8 {[%clk 0:00:37]} 29. d5 {[%clk 0:01:29]}  h5 {[%clk 0:00:35]} 30. c4 {[%clk 0:01:29]}  b6 {[%clk 0:00:30]} 31. Qf4 {[%clk 0:01:27]}  a5 {[%clk 0:00:29]} 32. Re8 {[%clk 0:01:20]}  Rd7 {[%clk 0:00:18]} 33. Qe5 {[%clk 0:01:17]}  Qxe5 {[%clk 0:00:17]} 34. R1xe5 {[%clk 0:01:17]}  Nd6 {[%clk 0:00:18]} 35. Rb8 {[%clk 0:01:14]}  Kf6 {[%clk 0:00:16]} 36. Re2 {[%clk 0:01:02]}  Nb7 {[%clk 0:00:16]} 37. Ree8 {[%clk 0:00:54]}  Kf5 {[%clk 0:00:14]} 38. Rec8 {[%clk 0:00:46]}  g5 {[%clk 0:00:13]} 39. Rc6 {[%clk 0:00:45]}  a4 {[%clk 0:00:12]} 40. bxa4 {[%clk 0:00:43]}  Na5 {[%clk 0:00:12]} 41. Rcc8 {[%clk 0:00:40]}  Nb3 {[%clk 0:00:09]} 42. Rxb6 {[%clk 0:00:39]}  Nd4 {[%clk 0:00:10]} 43. Re8 {[%clk 0:00:33]}  Ra7 {[%clk 0:00:10]} 44. Rb4 {[%clk 0:00:31]}  Ra6 {[%clk 0:00:06]} 45. c5 {[%clk 0:00:30]}  g4 {[%clk 0:00:07]} 46. Rxd4 {[%clk 0:00:29]} 1-0


[Site "https://www.chess.com"]

[Event "Titled Tuesday Blitz January 18 2022"]
[White "Weetik, Vjacheslav"]
[Black "Demchenko, Anton"]
[WhiteFideId "4153472"]
[BlackFideId "4160258"]
[WhiteElo "2469"]
[BlackElo "2539"]
[Result "1-0"]
[Round "05"]
[TimeControl "180+1"]
[Date "2022.01.18"]
[WhiteClock "0:00:45"]
[BlackClock "0:00:01"]

1. d4 {[%clk 0:02:57]}  Nf6 {[%clk 0:03:00]} 2. c4 {[%clk 0:02:53]}  g6 {[%clk 0:02:59]} 3. Nc3 {[%clk 0:02:52]}  Bg7 {[%clk 0:02:57]} 4. e4 {[%clk 0:02:51]}  d6 {[%clk 0:02:58]} 5. Nf3 {[%clk 0:02:47]}  Bg4 {[%clk 0:02:55]} 6. Be2 {[%clk 0:02:42]}  Bxf3 {[%clk 0:02:53]} 7. Bxf3 {[%clk 0:02:17]}  e5 {[%clk 0:02:53]} 8. d5 {[%clk 0:02:14]}  h5 {[%clk 0:02:53]} 9. b3 {[%clk 0:02:04]}  a5 {[%clk 0:02:46]} 10. O-O {[%clk 0:01:58]}  Nbd7 {[%clk 0:02:41]} 11. Rb1 {[%clk 0:01:53]}  Kf8 {[%clk 0:02:19]} 12. a3 {[%clk 0:01:48]}  Bh6 {[%clk 0:02:19]} 13. Bb2 {[%clk 0:01:48]}  Kg7 {[%clk 0:01:16]} 14. b4 {[%clk 0:01:37]}  b6 {[%clk 0:01:16]} 15. Nb5 {[%clk 0:01:29]}  Kh7 {[%clk 0:01:09]} 16. g3 {[%clk 0:01:11]}  h4 {[%clk 0:01:07]} 17. Kg2 {[%clk 0:01:09]}  Kg7 {[%clk 0:01:02]} 18. Qc2 {[%clk 0:01:06]}  Qc8 {[%clk 0:00:59]} 19. Bc3 {[%clk 0:01:02]}  Bg5 {[%clk 0:00:55]} 20. Rh1 {[%clk 0:00:57]}  Rh7 {[%clk 0:00:49]} 21. h3 {[%clk 0:00:55]}  Qd8 {[%clk 0:00:29]} 22. Qe2 {[%clk 0:00:53]}  Kg8 {[%clk 0:00:20]} 23. Rb2 {[%clk 0:00:53]}  Bh6 {[%clk 0:00:10]} 24. Rc2 {[%clk 0:00:53]}  Bf8 {[%clk 0:00:10]} 25. Bd2 {[%clk 0:00:54]}  Qc8 {[%clk 0:00:06]} 26. Bg5 {[%clk 0:00:53]}  hxg3 {[%clk 0:00:06]} 27. fxg3 {[%clk 0:00:54]}  axb4 {[%clk 0:00:05]} 28. axb4 {[%clk 0:00:54]}  Qb7 {[%clk 0:00:05]} 29. Rf1 {[%clk 0:00:51]}  Be7 {[%clk 0:00:05]} 30. Qd3 {[%clk 0:00:50]}  Re8 {[%clk 0:00:05]} 31. Rcf2 {[%clk 0:00:50]}  Rg7 {[%clk 0:00:03]} 32. h4 {[%clk 0:00:50]}  Rh7 {[%clk 0:00:03]} 33. Bd1 {[%clk 0:00:48]}  c6 {[%clk 0:00:04]} 34. dxc6 {[%clk 0:00:48]}  Qxc6 {[%clk 0:00:05]} 35. Nc3 {[%clk 0:00:48]}  Kf8 {[%clk 0:00:03]} 36. Ba4 {[%clk 0:00:48]}  Qc7 {[%clk 0:00:03]} 37. Bb5 {[%clk 0:00:47]}  Rd8 {[%clk 0:00:02]} 38. Nd5 {[%clk 0:00:45]}  Nxd5 {[%clk 0:00:03]} 39. Qxd5 {[%clk 0:00:46]}  f6 {[%clk 0:00:01]} 40. c5 {[%clk 0:00:45]}  bxc5 {[%clk 0:00:01]} 41. Bc4 {[%clk 0:00:45]} 1-0


[Site "https://www.chess.com"]